bitfinex-derivatives/quotes_SOLF0:USTF0_20250509
["timestamp","ask_amount","ask_price","bid_price","bid_amount"]
[1746761660486,40.2748,162.52,162.47,6.1564]
[1746761660692,6.1551,162.51,162.44,38.0604]
[1746761661296,6.1551,162.51,162.46,6.1565]
[1746761662095,6.1551,162.51,162.44,38.0604]
[1746761662096,34.12,162.52,162.44,38.0604]
[1746761663000,40.2746,162.52,162.47,6.1565]
[1746761663404,40.2746,162.52,162.44,38.0604]
[1746761664397,34.12,162.52,162.44,38.0604]
[1746761664597,34.12,162.52,162.46,6.1568]
[1746761664802,34.12,162.52,162.44,3.9804]
[1746761665099,34.12,162.52,162.43,2.0923]
[1746761666006,6.156,162.49,162.45,6.1572]
[1746761667205,6.1561,162.48,162.44,6.1575]
[1746761667403,34.12,162.52,162.42,34.06]
[1746761667803,6.1561,162.49,162.44,6.1575]
[1746761668204,34.12,162.52,162.41,1.0]
[1746761669306,6.09937279,162.51,162.41,1.0]
[1746761669806,6.157,162.46,162.41,7.1587]
[1746761670907,34.04,162.47,162.43,6.1579]
[1746761671910,34.04,162.47,162.42,6.1583]
[1746761672205,34.04,162.47,162.41,1.0]
[1746761672407,6.1569,162.46,162.41,7.1584]
[1746761672708,34.04,162.47,162.41,1.0]
[1746761674007,6.1569,162.46,162.41,7.1584]
[1746761674410,6.1569,162.46,162.41,1.0]
[1746761675010,6.1569,162.46,162.41,7.1587]
[1746761675511,6.1569,162.46,162.42,6.1583]
[1746761675706,6.1569,162.46,162.41,1.0]
[1746761676209,6.1573,162.45,162.41,7.1587]
[1746761676411,34.04,162.47,162.41,1.0]
[1746761676911,6.1575,162.45,162.41,1.0]
[1746761677110,34.04,162.47,162.41,1.0]
[1746761677512,6.1579,162.44,162.41,1.0]
[1746761678007,40.1966,162.47,162.42,6.158]
[1746761678211,34.04,162.47,162.41,7.09937279]
[1746761678705,34.04,162.47,162.41,41.13937279]
[1746761681015,34.04,162.47,162.45,6.1571]
[1746761685512,34.04,162.47,162.41,41.13937279]
[1746761685716,34.04,162.47,162.46,6.1569]
[1746761686512,34.04,162.5,162.46,6.1569]
[1746761686917,40.1957,162.5,162.45,6.1572]
[1746761687114,34.04,162.5,162.45,6.1572]
[1746761687314,6.156,162.49,162.44,6.1575]
[1746761690319,6.156,162.49,162.45,6.1572]
[1746761690519,34.04,162.5,162.41,41.09937279]
[1746761690718,34.04,162.5,162.43,6.1577]
[1746761690919,34.04,162.5,162.41,1.0]
[1746761691219,34.04,162.5,162.43,6.1577]
[1746761691721,6.1564,162.48,162.43,6.1577]
[1746761692222,6.1564,162.48,162.44,6.1575]
[1746761694521,6.1566,162.47,162.43,6.158]
[1746761695021,34.04,162.5,162.41,1.0]
[1746761695320,6.1564,162.48,162.41,1.0]
[1746761696023,6.1564,162.48,162.43,6.1579]
[1746761696321,6.1565,162.47,162.43,6.1579]
[1746761696521,6.1565,162.47,162.41,1.0]
[1746761696821,6.1564,162.48,162.44,6.1576]
[1746761697322,34.04,162.5,162.44,6.1576]
[1746761697522,34.04,162.5,162.41,1.0]
[1746761698022,6.1568,162.47,162.43,6.1577]
[1746761698624,6.1562,162.48,162.44,6.1576]
[1746761699122,34.04,162.5,162.44,6.1576]
[1746761699323,6.1567,162.47,162.43,6.158]
[1746761699526,34.04,162.5,162.41,1.0]
[1746761699818,6.1568,162.47,162.43,6.1578]
[1746761701927,6.1569,162.46,162.43,6.1578]
[1746761702120,34.04,162.5,162.41,1.0]
[1746761702321,40.13937279,162.5,162.41,1.0]
[1746761703024,34.04,162.5,162.41,1.0]
[1746761703521,6.1562,162.48,162.43,6.1579]
[1746761705032,33.96,162.47,162.41,1.0]
[1746761705320,6.1584,162.42,162.41,1.0]
[1746761705720,33.98,162.43,162.35,3.9488]
[1746761705917,33.96,162.42,162.31,8.00897279]
[1746761706322,6.1596,162.39,162.33,6.1617]
[1746761706526,33.98,162.38,162.33,6.1617]
[1746761706722,33.98,162.38,162.31,8.00897279]
[1746761706925,33.98,162.38,162.31,1.9096]
[1746761707123,33.98,162.38,162.3,85.60526408]
[1746761707328,33.98,162.38,162.29,3.912]
[1746761707527,6.1603,162.37,162.32,6.1618]
[1746761707827,33.98,162.38,162.29,3.912]
[1746761708130,40.1402,162.38,162.34,6.1613]
[1746761709729,33.98,162.38,162.3,6.1628]
[1746761709935,33.96,162.37,162.26,1.9096]
[1746761710130,40.05937279,162.37,162.26,1.9096]
[1746761710430,43.91167279,162.37,162.26,6.1644]
[1746761710631,43.91167279,162.37,162.25,1.9365]
[1746761710832,6.1628,162.31,162.26,6.1642]
[1746761711034,33.98,162.31,162.25,1.9365]
[1746761711334,6.1632,162.3,162.25,8.101]
[1746761712836,33.98,162.31,162.24,6.1651]
[1746761713338,33.98,162.31,162.22,6.09937279]
[1746761713933,6.164,162.28,162.23,6.1655]
[1746761714132,33.98,162.31,162.22,6.09937279]
[1746761714332,33.98,162.31,162.21,5.9579]
[1746761714532,6.1641,162.28,162.23,6.1655]
[1746761714836,33.98,162.31,162.21,5.9579]
[1746761715034,33.98,162.31,162.22,6.1659]
[1746761715035,6.1644,162.27,162.22,6.1659]
[1746761715235,40.07937279,162.31,162.21,1.9629]
[1746761715544,3.8531,162.3,162.18,40.05937279]
[1746761715933,6.1651,162.25,162.2,6.1666]
[1746761716227,40.1651,162.25,162.2,6.1666]
[1746761716636,6.1653,162.24,162.2,6.1666]
[1746761717039,34.0,162.25,162.2,6.1666]
[1746761717236,40.1651,162.25,162.2,6.1666]
[1746761717535,34.0,162.25,162.2,6.1666]
[1746761717729,34.0,162.25,162.17,8.05137279]
[1746761717935,6.1655,162.24,162.17,8.05137279]
[1746761718138,6.1655,162.24,162.19,6.1671]
[1746761718337,34.0,162.25,162.19,6.1671]
[1746761718536,6.166,162.23,162.17,8.05137279]
[1746761718736,6.166,162.23,162.18,6.1672]
[1746761719544,6.166,162.23,162.19,6.1671]
[1746761720342,6.1653,162.24,162.19,6.1671]
[1746761720545,6.1653,162.24,162.17,8.05137279]
[1746761720546,34.0,162.25,162.21,6.1662]
[1746761721843,3.8531,162.3,162.17,8.05137279]
[1746761722037,34.0,162.29,162.2,6.09937279]
[1746761722235,34.0,162.29,162.21,2.025]
[1746761722445,35.23236182,162.29,162.19,33.94]
[1746761722640,6.1644,162.26,162.21,6.1663]
[1746761722840,6.1644,162.26,162.19,33.94]
[1746761723044,35.23236182,162.29,162.17,3.977]
[1746761724646,6.1658,162.23,162.19,6.167]
[1746761724844,6.1658,162.23,162.17,3.977]
[1746761725246,34.02,162.24,162.2,6.1667]
[1746761725742,34.02,162.24,162.17,3.977]
[1746761725940,34.02,162.24,162.21,6.1663]
[1746761726553,34.02,162.24,162.19,6.09937279]
[1746761727049,34.02,162.28,162.22,6.09937279]
[1746761728249,34.02,162.28,162.25,6.1646]
[1746761729059,34.02,162.28,162.21,1.97]
[1746761729261,34.02,162.28,162.2,33.94]
[1746761729461,34.02,162.28,162.19,6.09937279]
[1746761729755,34.02,162.28,162.17,10.07637279]
[1746761730158,6.1659,162.23,162.18,6.1672]
[1746761730361,33.92,162.23,162.17,3.977]
[1746761731057,33.92,162.23,162.17,6.1676]
[1746761731564,33.92,162.23,162.15,2.071]
[1746761731863,33.92,162.23,162.14,1.0]
[1746761732056,33.92,162.23,162.15,6.1686]
[1746761732262,33.92,162.23,162.14,1.0]
[1746761732964,33.92,162.23,162.14,10.8582684]
[1746761733159,33.92,162.23,162.15,3.8603]
[1746761733360,33.92,162.23,162.2,6.1664]
[1746761734064,33.92,162.23,162.16,1.9956]
[1746761734065,33.92,162.23,162.18,33.92]
[1746761734266,35.15251371,162.27,162.18,33.92]
[1746761734464,41.31691371,162.27,162.18,33.92]
[1746761735464,41.31691371,162.27,162.22,6.1656]
[1746761735669,35.15251371,162.27,162.22,6.1656]
[1746761735963,35.15251371,162.27,162.18,43.7782684]
[1746761736162,1.23251371,162.27,162.22,9.8582684]
[1746761736363,1.23251371,162.27,162.23,39.9426]
[1746761736664,1.23251371,162.27,162.26,6.1644]
[1746761739069,1.23251371,162.27,162.25,6.1647]
[1746761739265,1.23251371,162.27,162.23,39.9426]
[1746761740472,1.23251371,162.27,162.24,6.1651]
[1746761740668,1.23251371,162.27,162.21,67.82]
[1746761741165,1.23251371,162.27,162.21,33.92]
[1746761741365,1.23251371,162.27,162.21,67.82]
[1746761741663,1.23251371,162.27,162.24,6.1649]
[1746761741868,1.23251371,162.27,162.21,67.82]
[1746761742470,1.23251371,162.27,162.24,6.165]
[1746761743367,1.23251371,162.27,162.21,33.92]
[1746761743769,7.39691371,162.27,162.21,33.92]
[1746761743969,7.39691371,162.27,162.2,33.88]
[1746761744374,6.1645,162.26,162.22,6.1659]
[1746761745073,7.39661371,162.27,162.22,6.1659]
[1746761745264,1.23251371,162.27,162.23,6.1655]
[1746761745471,1.23251371,162.27,162.19,33.88]
[1746761746173,1.23251371,162.27,162.26,6.1644]
[1746761752784,1.23251371,162.27,162.2,9.8582684]
[1746761752985,1.23251371,162.27,162.19,33.88]
[1746761753583,1.23251371,162.27,162.24,6.1649]
[1746761754080,1.23251371,162.27,162.21,6.15528764]
[1746761754984,1.23251371,162.27,162.25,6.1645]
[1746761756379,1.23251371,162.27,162.26,6.1644]
[1746761756585,33.92,162.31,162.25,6.15528764]
[1746761756985,33.92,162.31,162.28,6.1634]
[1746761758085,33.92,162.31,162.25,10.12838764]
[1746761758684,33.92,162.31,162.28,6.1633]
[1746761759886,40.0827,162.31,162.27,6.164]
[1746761760190,40.0827,162.31,162.16,538.79528764]
[1746761760191,33.92,162.31,162.2,33.82]
[1746761760387,6.164,162.28,162.24,6.165]
[1746761762580,33.92,162.31,162.22,6.15528764]
[1746761763384,6.1645,162.26,162.22,6.15528764]
[1746761764085,6.1645,162.26,162.22,12.32098764]
[1746761765283,6.1642,162.27,162.23,6.1655]
[1746761766085,6.1646,162.26,162.22,12.32108764]
[1746761767387,6.1648,162.25,162.22,12.32108764]
[1746761767585,33.82,162.3,162.23,6.1656]
[1746761767781,6.1645,162.26,162.22,6.15528764]
[1746761768290,6.1645,162.26,162.22,12.32108764]
[1746761768485,6.1649,162.25,162.21,1.9518]
[1746761768788,33.82,162.3,162.23,6.1654]
[1746761768980,6.1644,162.27,162.23,6.1654]
[1746761769490,33.82,162.3,162.22,6.1658]
[1746761769678,6.1646,162.26,162.22,6.1658]
[1746761769883,6.1646,162.26,162.21,1.9518]
[1746761770077,6.1637,162.28,162.24,6.1652]
[1746761770988,33.92,162.31,162.22,6.15528764]
[1746761771182,33.92,162.31,162.21,1.9518]
[1746761771389,33.92,162.31,162.24,6.15528764]
[1746761772189,33.92,162.31,162.27,6.1639]
[1746761774888,33.92,162.31,162.28,6.1636]
[1746761775286,40.0826,162.31,162.24,6.15528764]
[1746761775985,40.0826,162.31,162.27,6.1638]
[1746761776289,33.92,162.31,162.24,6.15528764]
[1746761776984,532.16,162.33,162.3,6.1628]
[1746761777885,6.1611,162.35,162.27,6.15528764]
[1746761778086,34.11343,162.36,162.3,6.15528764]
[1746761778492,34.11343,162.36,162.25,71.5973]
[1746761778790,34.11343,162.36,162.29,6.15528764]
[1746761779789,34.11343,162.36,162.33,6.1615]
[1746761779992,34.11343,162.36,162.32,6.15528764]
[1746761780189,34.11343,162.36,162.3,35.8212]
[1746761780491,34.11343,162.36,162.3,41.97648764]
[1746761780790,34.11343,162.36,162.34,6.1611]
[1746761780992,0.29343,162.36,162.31,4.0142]
[1746761781588,0.29343,162.36,162.35,6.161]
[1746761782788,33.82,162.4,162.38,6.1596]
[1746761782989,39.9777,162.44,162.36,6.15528764]
[1746761783188,33.82,162.44,162.38,6.1598]
[1746761783589,6.158,162.43,162.36,6.15528764]
[1746761783784,6.158,162.43,162.35,33.74]
[1746761783982,33.82,162.44,162.39,6.1595]
[1746761784184,33.82,162.44,162.35,33.74]
[1746761784494,33.82,162.44,162.36,6.15528764]
[1746761784691,39.9777,162.44,162.36,6.15528764]
[1746761784991,33.82,162.44,162.35,33.74]
[1746761785193,33.82,162.44,162.38,6.1598]
[1746761785495,6.1581,162.43,162.38,6.1598]
[1746761785689,33.82,162.44,162.38,6.1598]
[1746761786192,6.1581,162.43,162.38,6.1598]
[1746761787096,6.1584,162.42,162.36,6.15528764]
[1746761787395,33.82,162.44,162.36,6.15528764]
[1746761787696,33.82,162.44,162.39,6.1592]
[1746761787896,33.82,162.44,162.36,6.15528764]
[1746761788396,6.1583,162.43,162.36,6.15528764]
[1746761788895,6.1583,162.43,162.38,6.1596]
[1746761789095,6.1583,162.43,162.36,6.15528764]
[1746761789490,6.1583,162.43,162.36,8.11658764]
[1746761789696,39.9777,162.44,162.36,8.11658764]
[1746761790097,39.9777,162.44,162.39,6.1592]
[1746761790596,6.158,162.43,162.38,6.1598]
[1746761790894,33.82,162.44,162.38,6.1598]
[1746761791695,6.1585,162.42,162.38,6.1598]
[1746761791896,33.82,162.44,162.39,6.1594]
[1746761792097,33.82,162.44,162.36,1.9613]
[1746761792400,6.1583,162.43,162.36,1.9613]
[1746761792901,39.9777,162.44,162.4,6.1591]
[1746761793095,33.82,162.44,162.36,1.9613]
[1746761794000,6.158,162.43,162.39,6.1595]
[1746761794200,33.82,162.44,162.36,1.9613]
[1746761794494,33.82,162.44,162.37,6.1601]
[1746761794695,33.82,162.44,162.36,1.9613]
[1746761795196,6.159,162.41,162.37,6.1602]
[1746761796702,6.1584,162.42,162.38,6.1596]
[1746761798096,6.1588,162.41,162.38,6.1596]
[1746761798298,6.1588,162.41,162.37,6.1601]
[1746761798800,6.1588,162.41,162.37,6.16]
[1746761799101,6.1594,162.4,162.34,33.66]
[1746761799701,6.1588,162.41,162.37,6.1601]
[1746761799997,6.1588,162.41,162.34,33.66]
[1746761800597,6.1588,162.41,162.37,6.1602]
[1746761801999,6.1585,162.42,162.38,6.1598]
[1746761802199,33.82,162.44,162.34,33.66]
[1746761802200,33.82,162.44,162.35,2.0194]
[1746761802500,6.1583,162.43,162.38,6.1596]
[1746761802897,6.1583,162.43,162.35,2.0194]
[1746761803399,6.1584,162.42,162.35,35.6794]
[1746761804096,6.1584,162.42,162.38,6.1596]
[1746761804301,6.1584,162.42,162.35,35.6794]
[1746761804600,6.1581,162.43,162.35,35.6794]
[1746761805600,6.1585,162.42,162.38,6.1596]
[1746761806799,33.82,162.44,162.35,41.83468764]
[1746761806800,6.1581,162.43,162.35,41.83468764]
[1746761807103,33.82,162.44,162.35,41.83468764]
[1746761807502,6.158,162.43,162.39,6.1591]
[1746761807800,33.82,162.44,162.35,41.83468764]
[1746761808204,39.9777,162.44,162.4,6.1589]
[1746761808405,33.82,162.44,162.35,41.83468764]
[1746761808604,33.82,162.44,162.38,6.15528764]
[1746761808904,33.7,162.48,162.38,6.15528764]
[1746761809305,33.7,162.48,162.39,1.9586]
[1746761809606,6.1566,162.47,162.39,1.9586]
[1746761809807,6.1566,162.47,162.4,33.62]
[1746761810506,33.7,162.48,162.41,6.15528764]
[1746761810805,33.7,162.48,162.41,8.19748764]
[1746761811209,33.7,162.48,162.44,6.1574]
[1746761811804,39.8562,162.48,162.44,6.1574]
[1746761812005,33.7,162.48,162.45,6.1571]
[1746761812604,102.34791263,162.56,162.47,6.15528764]
[1746761813111,6.1543,162.53,162.48,6.156]
[1746761813303,102.34791263,162.56,162.47,6.15528764]
[1746761813610,6.1552,162.51,162.47,6.15528764]
[1746761814008,102.34791263,162.56,162.47,6.15528764]
[1746761814208,6.1553,162.5,162.47,6.15528764]
[1746761814610,6.1553,162.5,162.46,33.62]
[1746761815511,6.1553,162.5,162.46,39.7768]
[1746761815808,33.68,162.57,162.46,33.62]
[1746761816012,532.12,162.58,162.41,41.79748764]
[1746761816013,33.6,162.54,162.41,41.79748764]
[1746761816309,5.561,162.53,162.41,41.79748764]
[1746761816710,5.561,162.53,162.43,6.1577]
[1746761817011,5.561,162.53,162.41,41.79748764]
[1746761817213,6.156,162.49,162.42,33.58]
[1746761817712,6.156,162.49,162.44,6.1573]
[1746761818013,6.156,162.49,162.42,33.58]
[1746761818516,6.1554,162.5,162.42,33.58]
[1746761818811,33.68,162.51,162.42,33.58]
[1746761819012,6.1556,162.5,162.42,33.58]
[1746761819411,6.1556,162.5,162.45,6.157]
[1746761819709,33.68,162.51,162.42,33.58]
[1746761820012,33.68,162.51,162.43,6.1579]
[1746761820211,33.68,162.51,162.41,8.19748764]
[1746761820618,6.1569,162.46,162.42,6.1581]
[1746761820912,33.56,162.46,162.39,35.6386]
[1746761821118,33.56,162.46,162.38,35.5351]
[1746761821419,6.1583,162.43,162.39,6.1595]
[1746761822617,33.56,162.46,162.38,39.7399]
[1746761822917,33.56,162.46,162.35,33.56]
[1746761823210,6.1592,162.4,162.36,6.1604]
[1746761823415,33.56,162.46,162.35,33.56]
[1746761823918,6.1581,162.43,162.38,6.1596]
[1746761824214,6.1581,162.43,162.35,33.56]
[1746761824416,33.56,162.44,162.34,8.17508764]
[1746761825118,6.1586,162.42,162.36,6.1604]
[1746761825316,33.56,162.44,162.34,8.17508764]
[1746761825717,6.159,162.41,162.34,8.17508764]
[1746761826016,33.56,162.44,162.34,8.17508764]
[1746761826819,6.1583,162.43,162.38,6.1596]
[1746761827315,6.1585,162.42,162.38,6.1596]
[1746761827521,6.1585,162.42,162.37,6.1602]
[1746761827711,33.56,162.44,162.34,8.17508764]
[1746761827913,6.1583,162.43,162.38,6.1596]
[1746761828519,6.1585,162.42,162.38,6.1596]
[1746761828721,33.56,162.44,162.34,8.17508764]
[1746761829218,33.56,162.44,162.38,6.1596]
[1746761829623,6.158,162.43,162.38,6.1596]
[1746761829823,6.158,162.43,162.39,6.1594]
[1746761830125,33.56,162.44,162.34,8.17508764]
[1746761830426,33.56,162.44,162.34,2.0198]
[1746761830725,6.1585,162.42,162.37,6.16]
[1746761831224,6.1585,162.42,162.38,6.1599]
[1746761831426,6.1587,162.41,162.34,8.17508764]
[1746761831626,33.56,162.44,162.34,8.17508764]
[1746761831821,33.56,162.44,162.35,6.161]
[1746761832427,6.1598,162.39,162.35,6.161]
[1746761832627,33.56,162.41,162.33,8.0919]
[1746761832925,33.56,162.41,162.33,1.9304]
[1746761833525,6.1601,162.38,162.34,6.1614]
[1746761834227,6.1603,162.37,162.34,6.1614]
[1746761834629,33.56,162.41,162.34,6.1614]
[1746761835030,6.16,162.38,162.34,6.1614]
[1746761835225,33.56,162.41,162.34,6.1614]
[1746761835935,6.1601,162.38,162.34,6.1614]
[1746761837135,6.1604,162.37,162.34,6.1614]
[1746761837832,6.1604,162.37,162.33,8.0921]
[1746761838232,33.56,162.41,162.31,119.16997031]
[1746761838427,33.56,162.41,162.31,85.60997031]
[1746761838828,39.71528764,162.41,162.31,85.60997031]
[1746761839029,3.7286,162.4,162.31,85.60997031]
[1746761839230,33.52,162.39,162.31,85.60997031]
[1746761839431,6.1616,162.34,162.31,85.60997031]
[1746761840835,33.52,162.39,162.31,85.60997031]
[1746761841735,6.1607,162.36,162.32,6.1619]
[1746761841932,33.52,162.39,162.31,85.60997031]
[1746761842432,33.52,162.39,162.32,6.1621]
[1746761843426,33.52,162.39,162.31,91.77247031]
[1746761843626,6.1615,162.34,162.31,91.77247031]
[1746761844535,6.1612,162.35,162.31,91.77247031]
[1746761845436,6.1612,162.35,162.31,6.1625]
[1746761845637,33.58,162.36,162.27,33.58]
[1746761846337,6.1613,162.35,162.27,33.58]
[1746761847237,33.58,162.36,162.27,33.58]
[1746761847438,33.58,162.36,162.29,6.15528764]
[1746761847833,33.58,162.36,162.34,6.1614]
[1746761849931,33.58,162.36,162.35,6.161]
[1746761850134,33.58,162.4,162.32,6.15528764]
[1746761850342,33.58,162.4,162.33,2.0782]
[1746761851331,33.58,162.4,162.32,2.0144]
[1746761851839,6.1614,162.35,162.31,39.6424]
[1746761852041,33.58,162.4,162.31,33.48]
[1746761852340,6.1617,162.34,162.3,6.1627]
[1746761853738,6.1619,162.33,162.3,6.1627]
[1746761853945,33.46,162.35,162.28,2.0782]
[1746761854134,33.46,162.34,162.28,2.0782]
[1746761854545,6.1625,162.32,162.27,6.1637]
[1746761855345,6.1625,162.32,162.28,6.1636]
[1746761855546,6.1626,162.31,162.25,2.0144]
[1746761855948,33.46,162.34,162.26,6.1641]
[1746761856447,33.46,162.34,162.25,6.1647]
[1746761857149,35.3982,162.34,162.25,6.1647]
[1746761857643,6.1636,162.29,162.25,6.1647]
[1746761857846,39.6236,162.29,162.25,6.1647]
[1746761858249,6.1638,162.28,162.24,6.1651]
[1746761858449,33.46,162.29,162.21,6.15528764]
[1746761858647,33.46,162.29,162.19,1.9696]
[1746761858846,6.1649,162.25,162.19,35.4096]
[1746761859044,33.46,162.24,162.14,34.44]
[1746761859250,33.46,162.23,162.14,7.15528764]
[1746761859449,6.1668,162.2,162.14,7.15528764]
[1746761859652,6.1668,162.2,162.15,6.1686]
[1746761859846,33.46,162.23,162.14,1.0]
[1746761860550,6.1672,162.19,162.14,7.1689]
[1746761860751,33.46,162.23,162.14,1.0]
[1746761861253,6.1667,162.21,162.15,6.1683]
[1746761861552,33.46,162.23,162.15,6.1683]
[1746761862054,6.167,162.2,162.15,6.1683]
[1746761863755,6.1671,162.19,162.14,7.169]
[1746761863956,33.42,162.21,162.14,1.0]
[1746761865255,6.1677,162.18,162.14,1.0]
[1746761865456,39.6477,162.18,162.14,7.1689]
[1746761865659,33.48,162.18,162.14,7.1689]
[1746761866553,33.48,162.18,162.14,1.0]
[1746761866854,39.6478,162.18,162.14,1.0]
[1746761867851,6.1679,162.17,162.14,1.0]
[1746761868758,39.6475,162.18,162.14,1.0]
[1746761869155,1.23327372,162.17,162.14,1.0]
[1746761869755,7.40127372,162.17,162.14,1.0]
[1746761870355,1.23327372,162.17,162.14,1.0]
[1746761871060,1.23327372,162.17,162.14,7.1689]
[1746761871359,1.23327372,162.17,162.14,1.0]
[1746761873964,1.23327372,162.17,162.14,7.1689]
[1746761874262,1.23327372,162.17,162.14,1.0]
[1746761875164,1.23327372,162.17,162.14,7.1689]
[1746761877967,1.23327372,162.17,162.15,6.1686]
[1746761878167,1.23327372,162.17,162.14,1.0]
[1746761878666,1.23327372,162.17,162.14,7.1687]
[1746761879268,1.23327372,162.17,162.15,6.1686]
[1746761880164,1.23327372,162.17,162.16,6.1682]
[1746761880466,1.23327372,162.17,162.14,1.0]
[1746761880668,1.23327372,162.17,162.15,6.1685]
[1746761882369,1.23327372,162.17,162.14,1.0]
[1746761882370,1.23327372,162.17,162.14,7.1689]
[1746761884676,1.23327372,162.17,162.15,6.1686]
[1746761885170,1.23327372,162.17,162.14,1.0]
[1746761886870,33.5,162.2,162.18,6.1672]
[1746761887070,33.5,162.2,162.14,7.15528764]
[1746761887071,33.34,162.24,162.15,4.1376]
[1746761887374,33.34,162.24,162.2,6.1664]
[1746761887575,33.34,162.24,162.17,6.15528764]
[1746761888171,34.57274161,162.24,162.17,6.15528764]
[1746761889376,40.73794161,162.24,162.19,6.1671]
[1746761889577,40.73794161,162.24,162.17,6.15528764]
[1746761889876,40.73794161,162.24,162.19,6.1671]
[1746761890274,6.1657,162.23,162.19,6.1671]
[1746761890578,34.57274161,162.24,162.17,6.1676]
[1746761890877,1.2328176,162.23,162.15,4.1376]
[1746761891074,1.2328176,162.23,162.15,8.2404]
[1746761891377,1.2328176,162.23,162.15,6.1686]
[1746761891675,6.1674,162.19,162.15,6.1686]
[1746761894176,1.2328176,162.23,162.14,7.15528764]
[1746761894479,6.1682,162.17,162.14,1.0]
[1746761894881,6.1676,162.18,162.14,1.0]
[1746761896581,6.1676,162.18,162.14,7.1689]
[1746761897182,6.1679,162.17,162.14,1.0]
[1746761897580,33.34,162.19,162.14,1.0]
[1746761897581,6.1676,162.18,162.14,1.0]
[1746761899787,39.5072,162.19,162.14,1.0]
[1746761900086,1.23319768,162.18,162.14,1.0]
[1746761900487,1.23319768,162.18,162.14,7.1687]
[1746761900683,1.23319768,162.18,162.14,1.0]
[1746761900987,1.23319768,162.18,162.14,7.1687]
[1746761901179,1.23319768,162.18,162.14,1.0]
[1746761901587,1.23319768,162.18,162.15,6.1684]
[1746761902288,1.23319768,162.18,162.16,6.1682]
[1746761902488,1.23319768,162.18,162.14,1.0]
[1746761902685,1.23319768,162.18,162.15,1.9139]
[1746761903287,1.23319768,162.18,162.16,6.1682]
[1746761903492,1.23319768,162.18,162.15,1.9139]
[1746761903887,1.23319768,162.18,162.16,6.1679]
[1746761904192,1.23319768,162.18,162.15,1.9139]
[1746761904494,1.23319768,162.18,162.17,6.1679]
[1746761906189,1.23319768,162.18,162.16,6.1682]
[1746761906993,1.23319768,162.18,162.14,1.0]
[1746761907494,1.23319768,162.18,162.16,6.1679]
[1746761908496,1.23319768,162.18,162.15,6.1685]
[1746761908795,1.23319768,162.18,162.14,1.0]
[1746761909597,1.23319768,162.18,162.17,6.1679]
[1746761911703,39.5056,162.23,162.19,6.1668]
[1746761912401,33.34,162.23,162.2,6.1667]
[1746761914304,33.34,162.23,162.21,6.1663]
[1746761914503,33.34,162.23,162.17,8.18698764]
[1746761914703,33.18,162.27,162.17,8.18698764]
[1746761915004,34.41251371,162.27,162.17,8.18698764]
[1746761915199,34.41251371,162.27,162.2,6.15528764]
[1746761915401,34.41251371,162.27,162.2,39.33528764]
[1746761915805,1.23251371,162.27,162.23,6.15528764]
[1746761916205,1.23251371,162.27,162.24,3.9686]
[1746761917004,1.23251371,162.27,162.26,6.1644]
[1746761920301,1.23251371,162.27,162.25,39.3247]
[1746761920608,1.23251371,162.27,162.25,33.16]
[1746761922010,1.23251371,162.27,162.26,6.1644]
[1746761925815,33.18,162.32,162.29,6.163]